bitfinex/quotes_BTCUSD_20251215
["timestamp","ask_amount","ask_price","bid_price","bid_amount"]
[1765815576368,0.22966067,87085.0,87084.0,0.02950955]
[1765815576566,0.001,87086.0,87084.0,0.02950955]
[1765815576771,0.22966067,87085.0,87084.0,0.02950955]
[1765815577193,0.22967477,87080.0,87079.0,0.01828]
[1765815577408,0.03617,87085.0,87079.0,0.02976382]
[1765815577409,0.01148303,87085.0,87079.0,0.02976382]
[1765815577736,0.22966067,87085.0,87084.0,0.02999]
[1765815577877,0.22966067,87085.0,87082.0,0.24115169]
[1765815578214,0.22966331,87084.0,87083.0,0.07848396]
[1765815578576,0.01148342,87082.0,87079.0,0.03137669]
[1765815578776,0.01148329,87083.0,87079.0,0.01989287]
[1765815578978,0.01148329,87083.0,87070.0,0.22969874]
[1765815578979,0.22968996,87074.0,87070.0,0.01148501]
[1765815579204,0.01148435,87075.0,87073.0,0.24797223]
[1765815579364,0.2411717,87075.0,87073.0,0.01828]
[1765815579565,0.2411717,87075.0,87074.0,0.07418341]
[1765815579844,0.2770517,87075.0,87074.0,0.07418341]
[1765815579977,0.01148474,87072.0,87068.0,0.01148527]
[1765815580185,0.01148488,87071.0,87068.0,0.01148527]
[1765815580626,0.01148461,87073.0,87070.0,0.24118525]
[1765815580921,0.22969235,87073.0,87070.0,0.24118406]
[1765815581094,0.22969235,87073.0,87071.0,0.07833268]
[1765815581382,0.22967815,87079.0,87076.0,0.22968436]
[1765815581563,0.01148369,87080.0,87074.0,0.01148448]
[1765815581761,0.01048,87081.0,87078.0,0.01148395]
[1765815581925,0.22967568,87080.0,87077.0,0.01148408]
[1765815582131,0.01148395,87078.0,87075.0,0.01301872]
[1765815582377,0.22968998,87074.0,87071.0,0.24118221]
[1765815582545,0.01148435,87075.0,87072.0,0.24117933]
[1765815582946,0.01148395,87078.0,87073.0,0.01148461]
[1765815583150,0.7852521,87100.0,87073.0,0.01148461]
[1765815583151,0.01003,87087.0,87079.0,0.01148382]
[1765815583349,0.22965885,87086.0,87083.0,0.22966344]
[1765815583712,0.22965885,87086.0,87084.0,0.2607911]
[1765815583985,0.22965541,87087.0,87084.0,0.03112812]
[1765815584229,0.22965808,87086.0,87084.0,0.03112812]
[1765815584397,0.22965785,87088.0,87085.0,0.22966023]
[1765815584615,0.001,87086.0,87084.0,0.04261128]
[1765815584842,0.001,87086.0,87085.0,0.2700306]
[1765815585037,0.01148066,87103.0,87100.0,0.22962016]
[1765815585215,0.01148013,87107.0,87102.0,0.01148079]
[1765815585216,0.03673026,87106.0,87102.0,0.01148079]
[1765815585415,0.01148039,87105.0,87102.0,0.00161287]
[1765815585616,0.01147987,87109.0,87097.0,0.01148145]
[1765815585617,0.01148026,87106.0,87103.0,0.01828]
[1765815586030,0.22960814,87105.0,87104.0,0.05234468]
[1765815586380,0.01147987,87109.0,87103.0,0.01828]
[1765815586381,0.00025191,87111.0,87105.0,0.01148039]
[1765815586578,0.00025191,87111.0,87110.0,0.07036]
[1765815586852,0.00025191,87111.0,87110.0,0.12942]
[1765815587616,0.00125191,87111.0,87110.0,0.13103287]
[1765815588640,0.00125191,87111.0,87110.0,0.00161287]
[1765815588817,0.00125191,87111.0,87110.0,0.12131211]
[1765815589154,0.00025191,87111.0,87110.0,0.22074211]
[1765815590134,0.00025191,87111.0,87110.0,0.45033687]
[1765815592332,0.00025191,87111.0,87110.0,0.45233687]
[1765815592739,0.00025191,87111.0,87110.0,0.10503211]
[1765815592938,0.00025191,87111.0,87110.0,0.45433687]
[1765815593715,0.00025191,87111.0,87110.0,0.45233687]
[1765815594284,0.00025191,87111.0,87110.0,0.45133687]
[1765815594574,0.00025191,87111.0,87110.0,0.45233687]
[1765815594770,0.00025191,87111.0,87110.0,0.12331211]
[1765815594973,0.00025191,87111.0,87110.0,0.23320763]
[1765815595282,0.00025191,87111.0,87110.0,0.35091763]
[1765815595632,0.00025191,87111.0,87110.0,0.34991763]
[1765815596373,0.00025191,87111.0,87110.0,0.35091763]
[1765815598194,0.00025191,87111.0,87110.0,0.45830509]
[1765815598395,0.00025191,87111.0,87110.0,0.56881271]
[1765815598595,0.00025191,87111.0,87110.0,0.56877271]
[1765815599043,0.00025191,87111.0,87110.0,0.56777271]
[1765815599343,0.00025191,87111.0,87110.0,0.56977271]
[1765815599545,0.00025191,87111.0,87110.0,0.91734367]
[1765815600176,0.00025191,87111.0,87110.0,1.31734367]
[1765815600620,0.00025191,87111.0,87110.0,1.31434367]
[1765815600834,0.00025191,87111.0,87110.0,1.29610367]
[1765815601034,0.00025191,87111.0,87110.0,1.18686364]
[1765815601193,0.00025191,87111.0,87110.0,0.73684525]
[1765815601390,0.00025191,87111.0,87110.0,0.86632528]
[1765815601800,0.00025191,87111.0,87110.0,0.91634367]
[1765815602001,0.00025191,87111.0,87110.0,0.89310367]
[1765815602200,0.00025191,87111.0,87110.0,0.80010364]
[1765815602472,0.00025191,87111.0,87110.0,0.84223271]
[1765815602606,0.00025191,87111.0,87110.0,0.80710364]
[1765815603500,0.00025191,87111.0,87110.0,0.80310364]
[1765815603717,0.00025191,87111.0,87110.0,0.91134367]
[1765815603948,0.00025191,87111.0,87110.0,0.80710364]
[1765815604172,0.00025191,87111.0,87110.0,0.91834367]
[1765815604575,0.00025191,87111.0,87110.0,0.91434367]
[1765815604803,0.00025191,87111.0,87110.0,0.91634367]
[1765815606677,0.00025191,87111.0,87110.0,1.06474367]
[1765815607369,0.00025191,87111.0,87110.0,1.46474367]
[1765815608055,0.0004,87144.0,87139.0,0.22951835]
[1765815608196,0.0004,87144.0,87139.0,0.39444978]
[1765815608426,0.0004,87144.0,87139.0,0.45189978]
[1765815608620,0.0013128,87140.0,87139.0,0.45189978]
[1765815609253,0.0013128,87140.0,87139.0,0.43365978]
[1765815609493,0.0013128,87140.0,87139.0,0.10522856]
[1765815609718,0.26240852,87140.0,87139.0,0.01824]
[1765815609936,0.22951901,87139.0,87136.0,0.01147631]
[1765815610150,0.22952362,87137.0,87136.0,0.01824]
[1765815610574,0.22952402,87137.0,87133.0,0.0297167]
[1765815610812,0.2410002,87137.0,87133.0,0.0297167]
[1765815611069,0.01147618,87137.0,87134.0,0.03051678]
[1765815611283,0.0069,87134.0,87133.0,0.01824]
[1765815611631,0.23643152,87134.0,87133.0,0.01824]
[1765815612258,0.0069,87134.0,87133.0,0.01824]
[1765815612493,0.01147736,87128.0,87121.0,0.01147828]
[1765815612661,0.0114771,87130.0,87124.0,0.01147789]
[1765815612891,0.01147723,87129.0,87124.0,0.01147789]
[1765815613093,0.01147723,87129.0,87124.0,0.24103511]
[1765815613405,0.01147723,87129.0,87114.0,0.2295839]
[1765815613406,0.01147749,87127.0,87119.0,0.24104944]
[1765815613579,0.01147749,87127.0,87117.0,0.22957542]
[1765815613580,0.01147842,87120.0,87117.0,0.01147881]
[1765815613881,0.24104653,87121.0,87118.0,0.02397956]
[1765815614218,0.02463453,87123.0,87122.0,0.22956314]
[1765815614390,0.22956971,87120.0,87118.0,0.02397956]
[1765815614591,0.24103839,87124.0,87118.0,0.02397956]
[1765815614592,0.02463453,87123.0,87119.0,0.01147855]
[1765815614820,0.01147828,87121.0,87120.0,0.01824]
[1765815615025,0.02463453,87124.0,87123.0,0.2295605]
[1765815615227,0.02463453,87126.0,87125.0,0.22955523]
[1765815615853,0.02463453,87126.0,87120.0,0.04703924]
[1765815615967,0.22956577,87121.0,87120.0,0.01824]
[1765815616173,0.24104405,87121.0,87120.0,0.01824]
[1765815616422,0.26567858,87121.0,87120.0,0.01824]
[1765815616657,0.22957104,87119.0,87118.0,0.00673956]
[1765815616811,0.28481557,87119.0,87118.0,0.00673956]
[1765815617018,0.28481557,87119.0,87118.0,0.001]
[1765815617819,0.31560874,87119.0,87118.0,0.001]
[1765815618016,0.26494963,87119.0,87118.0,0.001]
[1765815618235,0.22958422,87114.0,87113.0,0.01824]
[1765815618442,0.25421875,87114.0,87113.0,0.04417239]
[1765815618698,0.02463453,87114.0,87113.0,0.02593239]
[1765815619046,0.02463453,87114.0,87113.0,0.06739526]
[1765815619301,0.02463453,87118.0,87116.0,0.22957895]
[1765815619503,0.003,87119.0,87118.0,0.22957368]
[1765815619644,0.06227718,87144.0,87139.0,0.22951835]
[1765815619844,0.25466662,87140.0,87139.0,0.02775]
[1765815620053,0.25466662,87140.0,87130.0,0.49407442]
[1765815620054,0.22955793,87124.0,87120.0,0.01147842]
[1765815620393,0.22956314,87122.0,87121.0,0.03303847]
[1765815620555,0.01147789,87124.0,87121.0,0.03303847]
[1765815620734,0.01147789,87124.0,87121.0,0.01824]
[1765815620937,0.24103597,87124.0,87121.0,0.01824]
[1765815621192,0.2410343,87125.0,87121.0,0.02971828]
[1765815621391,0.2410343,87125.0,87121.0,0.25928395]
[1765815621392,0.22955839,87124.0,87121.0,0.25928395]
[1765815621595,0.22957368,87118.0,87113.0,0.03741173]
[1765815621831,0.01147842,87120.0,87109.0,0.01147987]
[1765815622037,0.22958422,87114.0,87113.0,0.01824]
[1765815622244,0.2295931,87111.0,87107.0,0.24108216]
[1765815622459,0.24106924,87112.0,87108.0,0.07520115]
[1765815622634,0.24106924,87112.0,87108.0,0.01824]
[1765815622885,0.01148,87108.0,87105.0,0.22960731]
[1765815623115,0.24106406,87114.0,87110.0,0.22959438]
[1765815623322,0.002,87124.0,87121.0,0.01147828]
[1765815623563,0.05570471,87123.0,87122.0,0.01147815]
[1765815623764,0.05570471,87123.0,87121.0,0.24104325]
[1765815624097,0.02475765,87125.0,87123.0,0.2295605]
[1765815624327,0.02475765,87127.0,87126.0,0.2295526]
[1765815624683,0.01147723,87129.0,87126.0,0.2295526]
[1765815624684,0.02475765,87128.0,87126.0,0.2295526]
[1765815624931,0.02222221,87129.0,87126.0,0.2295526]
[1765815624932,0.02475765,87127.0,87126.0,0.2295526]
[1765815625124,0.03623501,87128.0,87125.0,0.01147776]
[1765815625302,0.02475765,87127.0,87126.0,0.22955224]
[1765815625501,0.03094706,87133.0,87130.0,0.0114771]
[1765815625704,0.03094706,87134.0,87132.0,0.22953679]
[1765815625905,0.02475841,87136.0,87135.0,0.22952889]
[1765815626139,0.0004,87140.0,87135.0,0.23114176]
[1765815626140,0.02475841,87137.0,87135.0,0.23114176]
[1765815626336,0.02475841,87139.0,87138.0,0.22952098]
[1765815626537,0.0004,87140.0,87139.0,0.03985]
[1765815626775,0.0004,87140.0,87139.0,0.0973]
[1765815626977,0.02607121,87140.0,87139.0,0.03985]
[1765815627143,0.05701827,87140.0,87138.0,0.06396478]
[1765815627352,0.02515841,87140.0,87138.0,0.29348539]
[1765815627551,0.02515841,87140.0,87139.0,0.10755555]
[1765815627552,0.0004,87140.0,87139.0,0.10755555]
[1765815627793,0.0004,87140.0,87139.0,0.20485555]
[1765815628035,0.0004,87140.0,87139.0,0.14840555]
[1765815628438,0.0004,87140.0,87139.0,0.20485555]
[1765815628749,0.0034,87140.0,87139.0,0.22942025]
[1765815629102,0.0034,87140.0,87139.0,0.20646842]
[1765815629512,0.0034,87140.0,87139.0,0.22942025]
[1765815629921,0.0024,87140.0,87139.0,0.22942025]
[1765815630120,0.0004,87140.0,87139.0,0.22942025]
[1765815630300,0.0004,87140.0,87139.0,0.23042025]
[1765815631174,0.0024,87140.0,87139.0,0.4599386]
[1765815631324,0.0024,87140.0,87139.0,0.43698677]
[1765815631527,0.0004,87140.0,87139.0,0.43698677]
[1765815631877,0.0004,87140.0,87139.0,0.45522677]
[1765815633239,0.0004,87140.0,87139.0,0.50524516]
[1765815633495,0.0004,87140.0,87139.0,0.61648519]
[1765815633765,0.0004,87151.0,87139.0,0.79594516]
[1765815633948,0.03094706,87166.0,87161.0,0.05001839]
[1765815634149,0.03094706,87166.0,87161.0,0.2126573]
[1765815634365,0.03094706,87172.0,87161.0,0.18971126]
[1765815634570,0.03094706,87174.0,87161.0,0.2126573]
[1765815635195,0.03094706,87174.0,87161.0,0.2136573]
[1765815635399,0.03094706,87175.0,87161.0,0.27762208]
[1765815635625,0.03094706,87175.0,87161.0,0.25367604]
[1765815636047,0.03094706,87175.0,87161.0,0.25467604]
[1765815636470,0.0002,87176.0,87161.0,0.25467604]
[1765815637338,0.0002,87176.0,87161.0,0.36791607]
[1765815639036,0.0002,87176.0,87161.0,0.65861607]
[1765815639240,0.0002,87176.0,87161.0,0.88807649]
[1765815639652,0.00109217,87162.0,87161.0,0.88807649]
[1765815640347,0.00109217,87162.0,87161.0,0.88607649]
[1765815640745,0.00109217,87162.0,87161.0,0.89007649]
[1765815640959,0.00109217,87162.0,87161.0,0.88907649]
[1765815641473,0.00109217,87162.0,87161.0,1.29107649]
[1765815642335,0.00109217,87162.0,87161.0,1.23710558]
[1765815642558,0.00109217,87162.0,87161.0,1.17983646]
[1765815642787,0.0002,87176.0,87167.0,0.62743213]
[1765815643003,0.0002,87176.0,87167.0,0.83517227]
[1765815643209,0.0002,87176.0,87167.0,0.89281227]
[1765815643407,0.00025165,87170.0,87167.0,0.89281227]
[1765815644121,0.00025165,87170.0,87167.0,0.89481227]
[1765815644549,0.00025165,87170.0,87167.0,0.89581227]
[1765815644765,0.00025165,87170.0,87167.0,0.83854315]
[1765815644977,0.00025165,87170.0,87167.0,0.94978318]
[1765815645630,0.00025165,87170.0,87167.0,0.90484146]
[1765815646045,0.02235769,87198.0,87191.0,0.01146907]
[1765815646299,0.01146907,87191.0,87186.0,0.01146973]
[1765815646498,0.24085335,87190.0,87187.0,0.02970959]
[1765815646725,0.24154042,87192.0,87188.0,0.24085801]
[1765815646726,0.01146894,87192.0,87188.0,0.24085801]
[1765815646909,0.01146894,87192.0,87187.0,0.02970959]
[1765815646910,0.0114692,87190.0,87189.0,0.05228992]
[1765815647046,0.01146881,87193.0,87189.0,0.28167635]
[1765815647395,0.2293841,87190.0,87189.0,0.05228992]
[1765815647758,0.22938203,87191.0,87189.0,0.05143669]
[1765815647961,0.24084782,87192.0,87189.0,0.05143669]
[1765815648164,0.2408464,87193.0,87190.0,0.01167486]
[1765815648386,0.01146881,87193.0,87190.0,0.24105877]
[1765815648594,0.24084596,87193.0,87190.0,0.24105877]
[1765815648856,0.01146881,87193.0,87190.0,0.01167486]
[1765815649042,0.22937111,87195.0,87192.0,0.01146894]
[1765815649252,0.22937358,87194.0,87193.0,0.07639455]
[1765815649485,0.003,87192.0,87191.0,0.01118464]
[1765815649900,0.003,87192.0,87191.0,0.22938147]
[1765815650305,0.003,87192.0,87191.0,0.01824]
[1765815650662,0.003,87192.0,87168.0,0.10166944]
[1765815650663,0.22943936,87169.0,87168.0,0.10166944]
[1765815650893,0.01903,87169.0,87168.0,0.22944199]
[1765815651094,0.229442,87168.0,87164.0,0.01147262]
[1765815651281,0.01147157,87172.0,87164.0,0.01147262]
[1765815651282,0.01147157,87172.0,87166.0,0.01147236]
[1765815651491,0.01147183,87170.0,87166.0,0.01147236]
[1765815651687,0.24091669,87168.0,87167.0,0.02753456]
[1765815651890,0.22946689,87159.0,87158.0,0.01824]
[1765815652124,0.22947227,87157.0,87152.0,0.24095631]
[1765815652259,0.01147354,87157.0,87153.0,0.22948148]
[1765815652452,0.01147354,87157.0,87152.0,0.24095631]
[1765815652453,0.2409474,87156.0,87152.0,0.24095631]
[1765815652684,0.22947946,87154.0,87153.0,0.05384453]
[1765815652902,0.01147499,87146.0,87138.0,0.24099607]
[1765815653112,0.01147539,87143.0,87142.0,0.01824]
[1765815653369,0.01147473,87148.0,87144.0,0.01147525]
[1765815653571,0.0114742,87152.0,87146.0,0.22949922]
[1765815653718,0.22949212,87149.0,87147.0,0.02524497]
[1765815653916,0.01147433,87151.0,87148.0,0.22949442]
[1765815654135,0.01147433,87151.0,87147.0,0.02524497]
[1765815654348,0.22949465,87148.0,87147.0,0.02524497]
[1765815654569,0.23049465,87148.0,87147.0,0.02524497]
[1765815655079,0.001,87148.0,87147.0,0.02524497]
[1765815655703,0.01147565,87141.0,87134.0,0.01147657]
[1765815656040,0.01147736,87128.0,87123.0,0.2295605]
[1765815656325,0.01147736,87128.0,87122.0,0.00161287]
[1765815656326,0.22955859,87124.0,87122.0,0.00161287]
[1765815656575,0.22955859,87124.0,87106.0,0.01397739]
[1765815656576,0.01147987,87109.0,87106.0,0.00249713]
[1765815656838,0.01818,87107.0,87106.0,0.02073713]
[1765815657041,0.03636,87107.0,87106.0,0.02868115]
[1765815657243,0.03636,87107.0,87106.0,0.00249713]
[1765815658034,1.0544,87107.0,87106.0,0.00249713]
[1765815658192,1.0544,87107.0,87106.0,0.00349713]
[1765815658818,1.3451,87107.0,87106.0,0.00349713]
[1765815659068,1.3451,87107.0,87106.0,0.00249713]
[1765815659610,1.3461,87107.0,87106.0,0.00349713]
[1765815660021,1.3461,87107.0,87106.0,0.00249713]
[1765815660563,1.57680762,87107.0,87106.0,0.00249713]
[1765815660812,1.46160762,87107.0,87106.0,0.00249713]
[1765815661048,1.3501,87107.0,87106.0,0.00249713]
[1765815661486,1.3451,87107.0,87106.0,0.00249713]
[1765815661899,1.4653,87107.0,87106.0,0.00249713]
[1765815662100,1.3501,87107.0,87106.0,0.00249713]
[1765815662304,1.33206,87107.0,87106.0,0.00249713]
[1765815662720,1.34941,87107.0,87106.0,0.00249713]
[1765815663110,0.34941,87107.0,87106.0,0.00249713]
[1765815663264,1.34941,87107.0,87106.0,0.00249713]
[1765815663465,1.35441,87107.0,87106.0,0.00249713]
[1765815663691,1.12356,87107.0,87106.0,0.00249713]
[1765815663892,0.02318,87107.0,87106.0,0.00249713]
[1765815664208,0.01818,87107.0,87106.0,0.02685649]
[1765815664407,0.008,87107.0,87106.0,0.02685649]
[1765815664609,0.008,87107.0,87106.0,0.00249713]
[1765815664852,0.2296022,87108.0,87106.0,0.00249713]
[1765815665030,0.002,87107.0,87106.0,0.00249713]
[1765815665824,0.22960267,87107.0,87106.0,0.00249713]
[1765815666701,0.22760267,87107.0,87106.0,0.00249713]
[1765815666907,0.01679,87119.0,87111.0,0.0114796]
[1765815667042,0.01679,87119.0,87110.0,0.01147973]
[1765815667043,0.01147907,87115.0,87112.0,0.0333678]
[1765815667243,0.81191599,87113.0,87112.0,0.0333678]
[1765815667451,0.01147881,87117.0,87112.0,0.0333678]
[1765815667452,0.3395,87118.0,87116.0,0.24105505]
[1765815667720,0.01679,87119.0,87116.0,0.24105505]
[1765815667922,0.25784095,87119.0,87116.0,0.24267027]
[1765815668110,0.22955093,87127.0,87123.0,0.22955847]
[1765815668324,0.24101452,87132.0,87126.0,0.24102827]
[1765815668611,0.01656,87133.0,87124.0,0.02908654]
[1765815668612,0.22955299,87126.0,87124.0,0.02908654]
[1765815668775,0.154,87124.0,87123.0,0.00161287]
[1765815668977,0.9417,87124.0,87123.0,0.00161287]
[1765815669180,0.1537,87124.0,87123.0,0.00161287]
[1765815669344,0.1517,87124.0,87123.0,0.02932318]
[1765815669770,0.1706,87126.0,87124.0,0.22955787]
[1765815669971,0.02084,87140.0,87135.0,0.22952889]
[1765815670152,0.01147525,87144.0,87137.0,0.01147618]
[1765815670373,0.01147552,87142.0,87139.0,0.02718]
[1765815670548,0.22950869,87143.0,87140.0,0.22951572]
[1765815670754,0.01147446,87150.0,87140.0,0.22951572]
[1765815670755,0.22948869,87151.0,87140.0,0.05642287]
[1765815670966,0.01147486,87147.0,87144.0,0.01147525]
[1765815671164,0.01147394,87154.0,87151.0,0.01147433]
[1765815671382,0.2299,87155.0,87153.0,0.01147407]
[1765815671627,1.0,87145.0,87144.0,0.00161287]
[1765815671861,0.002,87144.0,87141.0,0.01147565]
[1765815672062,0.24097922,87145.0,87142.0,0.01147552]
[1765815672265,0.24927499,87146.0,87143.0,0.02754291]
[1765815672485,0.1956,87144.0,87143.0,0.02754291]
[1765815673295,0.1956,87144.0,87134.0,0.24776919]
[1765815673296,0.24100061,87137.0,87134.0,0.24777097]
[1765815673508,0.24097778,87146.0,87140.0,0.22951531]
[1765815673706,0.01147525,87144.0,87140.0,0.24099109]
[1765815673961,0.001,87144.0,87141.0,0.24098873]
[1765815674255,0.01147341,87158.0,87153.0,0.01147407]
[1765815674398,0.01147315,87160.0,87154.0,0.25586961]
[1765815674587,0.02019,87163.0,87159.0,0.01147328]
[1765815674788,0.02019,87163.0,87154.0,0.02800422]
[1765815674789,0.22947165,87157.0,87154.0,0.00161287]
[1765815675046,0.01147354,87157.0,87154.0,0.24256362]
[1765815675196,0.01147354,87157.0,87155.0,0.05518897]
[1765815675405,0.01147288,87162.0,87159.0,0.01147328]
[1765815675746,0.22947358,87156.0,87155.0,0.00161287]
[1765815675948,0.23893659,87160.0,87157.0,0.01147354]
[1765815676150,0.22946313,87160.0,87157.0,0.24094377]
[1765815676350,0.01147302,87161.0,87158.0,0.05336412]
[1765815676666,0.21593474,87161.0,87158.0,0.00161287]
[1765815676868,0.229464,87160.0,87158.0,0.00161287]
[1765815677215,0.227464,87160.0,87158.0,0.00161287]
[1765815677429,0.01147381,87155.0,87152.0,0.0114742]
[1765815677634,0.22948373,87153.0,87151.0,0.02718]
[1765815677854,0.22948373,87153.0,87152.0,0.05821724]
[1765815678036,0.24095576,87154.0,87152.0,0.05821724]
[1765815678254,0.01147394,87154.0,87152.0,0.05821724]
[1765815678451,0.0825255,87218.0,87157.0,0.01147354]
[1765815678452,0.01147315,87160.0,87157.0,0.01147354]
[1765815678653,0.02019,87163.0,87156.0,0.01147367]
[1765815678858,0.002,87160.0,87158.0,0.24094054]
[1765815679071,0.002,87160.0,87158.0,0.24255341]
[1765815679288,0.002,87160.0,87158.0,0.00161287]
[1765815679908,0.002,87160.0,87157.0,0.01631547]
[1765815679909,0.22946832,87158.0,87157.0,0.01631547]
[1765815680084,0.01147354,87157.0,87154.0,0.01824]
[1765815680290,0.24094214,87158.0,87154.0,0.25919225]
[1765815680547,0.24094214,87158.0,87155.0,0.01147381]
[1765815680870,0.01147341,87158.0,87156.0,0.22947313]
[1765815681134,0.22944493,87167.0,87157.0,0.05502722]
[1765815681278,0.22944493,87167.0,87156.0,0.00161287]
[1765815681279,1.01147223,87167.0,87164.0,0.01147262]
[1765815681494,1.0,87167.0,87165.0,0.22944979]
[1765815681792,0.01989,87175.0,87166.0,0.24091962]
[1765815681997,0.00025161,87178.0,87176.0,0.22941956]
[1765815682312,0.00025161,87178.0,87177.0,0.03835]
[1765815682512,0.00025161,87178.0,87177.0,0.14694744]
[1765815682909,0.00025161,87178.0,87177.0,0.05378744]
[1765815683678,0.00025161,87178.0,87177.0,0.14694744]
[1765815685313,0.00025161,87178.0,87177.0,0.20521656]
[1765815685531,0.00025161,87178.0,87177.0,0.14794744]
[1765815686308,0.00025161,87178.0,87177.0,0.31120586]
[1765815687681,0.00025161,87178.0,87177.0,0.22545656]
[1765815688123,0.00025161,87178.0,87177.0,0.27547495]
[1765815688941,0.00025161,87178.0,87177.0,0.21820583]
[1765815689142,0.00025161,87178.0,87177.0,0.32944586]
[1765815689297,0.00025161,87178.0,87177.0,0.84956416]
[1765815689700,0.00025161,87178.0,87177.0,0.84856416]
[1765815690016,0.00025161,87178.0,87177.0,0.84656416]
[1765815690225,0.00025161,87178.0,87177.0,0.84856416]
[1765815690454,0.00025161,87178.0,87177.0,0.85256416]
[1765815690627,0.00025161,87178.0,87177.0,0.72108413]
[1765815690835,0.00025161,87178.0,87177.0,0.85056416]
[1765815691181,0.24083451,87197.0,87194.0,0.24084181]
[1765815691315,0.0002,87198.0,87197.0,0.03671]
[1765815691517,0.0002,87198.0,87197.0,0.32378855]
[1765815691926,0.00082886,87198.0,87197.0,0.32378855]
[1765815692134,0.00082886,87198.0,87197.0,0.23097855]
[1765815692483,0.23019191,87198.0,87197.0,0.00161287]
[1765815692740,0.00082886,87198.0,87197.0,0.05428714]
[1765815692911,0.00082886,87198.0,87195.0,0.02963]
[1765815692912,0.01146933,87189.0,87185.0,0.01146986]
[1765815693119,0.01146881,87193.0,87187.0,0.01146959]
[1765815693120,0.24084533,87193.0,87187.0,0.01146959]
[1765815693326,0.0002,87198.0,87187.0,0.00161287]
[1765815693521,0.0002,87198.0,87197.0,0.31997694]
[1765815693733,0.0002,87198.0,87197.0,0.46246612]
[1765815693944,0.0012,87198.0,87197.0,0.46246612]
[1765815694515,0.0002,87198.0,87197.0,0.44422612]
[1765815694679,0.22956305,87198.0,87197.0,0.00261287]
[1765815694882,0.22956305,87198.0,87197.0,0.01924]
[1765815695519,0.10333967,87198.0,87197.0,0.001]
[1765815695718,0.22936305,87198.0,87197.0,0.002]
[1765815695920,0.01146841,87196.0,87192.0,0.24084589]
[1765815696079,0.24082637,87200.0,87194.0,0.01146867]
[1765815696080,0.01146815,87198.0,87194.0,0.01146867]
[1765815696292,0.001,87198.0,87196.0,0.01146841]
[1765815696491,0.001,87198.0,87197.0,0.26934568]
[1765815696726,0.001,87198.0,87197.0,0.32409568]
[1765815696938,0.01146841,87196.0,87193.0,0.05891067]
[1765815697151,0.01146894,87192.0,87183.0,0.03996012]
[1765815697352,0.002,87198.0,87197.0,0.22936568]
[1765815697557,0.002,87198.0,87197.0,0.23097855]
[1765815697806,0.002,87198.0,87197.0,0.32470855]
[1765815698251,0.001,87198.0,87197.0,0.32470855]
[1765815698405,0.001,87198.0,87197.0,0.18009958]
[1765815698609,0.01146762,87202.0,87197.0,0.19156786]
[1765815698811,0.24081059,87206.0,87202.0,0.01146762]
[1765815699010,0.01146631,87212.0,87207.0,0.22933866]
[1765815699214,0.00028435,87208.0,87205.0,0.01146723]
[1765815699429,0.00028435,87208.0,87204.0,0.22934622]
[1765815699430,0.2410885,87208.0,87204.0,0.24081358]
[1765815699631,0.00088032,87206.0,87204.0,0.24081358]
[1765815699875,0.01175118,87208.0,87205.0,0.07788243]
[1765815700071,0.22933985,87207.0,87205.0,0.07788243]
[1765815700241,0.00028435,87208.0,87205.0,0.22934306]
[1765815700423,0.00228435,87208.0,87205.0,0.22934306]
[1765815700626,0.00228435,87208.0,87205.0,0.24081029]
[1765815700833,0.01146854,87195.0,87190.0,0.0114692]
[1765815701032,0.24084277,87194.0,87190.0,0.24085317]
[1765815701240,0.22937884,87192.0,87191.0,0.04817131]
[1765815701449,0.2293991,87185.0,87180.0,0.01147052]
[1765815701671,0.2293991,87185.0,87167.0,0.11124003]
[1765815701672,0.01147078,87178.0,87175.0,0.01147117]
[1765815701871,0.01147104,87176.0,87175.0,0.01824]
[1765815702073,0.01147091,87177.0,87175.0,0.01824]
[1765815702278,0.24089109,87177.0,87176.0,0.05229952]
[1765815702663,0.24090516,87172.0,87168.0,0.02971209]
[1765815702863,0.22943774,87170.0,87168.0,0.01824]
[1765815703410,0.24090871,87171.0,87136.0,0.05698]
[1765815703411,0.01147236,87166.0,87160.0,0.01147315]
[1765815703618,0.01147262,87164.0,87161.0,0.24093268]
[1765815703767,0.24092573,87164.0,87162.0,0.05064326]
[1765815703972,0.01147117,87175.0,87165.0,0.22944989]
[1765815704194,0.01147249,87165.0,87162.0,0.00161287]
[1765815704372,0.24092283,87165.0,87162.0,0.00161287]
[1765815705046,0.22945331,87164.0,87162.0,0.00161287]
[1765815705249,0.22945423,87164.0,87163.0,0.07254322]
[1765815705378,0.22945423,87164.0,87162.0,0.00161287]
[1765815705582,0.22945423,87164.0,87162.0,0.00261287]
[1765815705990,0.22945423,87164.0,87162.0,0.00161287]
[1765815706203,0.22947471,87156.0,87150.0,0.24096221]
[1765815706396,0.00030706,87164.0,87158.0,0.01147341]
[1765815706614,0.00030706,87164.0,87161.0,0.24093048]
[1765815706821,0.00030706,87164.0,87159.0,0.01147328]
[1765815706822,0.01147275,87163.0,87159.0,0.01147328]
[1765815707425,0.24093489,87161.0,87154.0,0.01147394]
[1765815707655,0.24094469,87158.0,87153.0,0.27291315]
[1765815707883,0.01147354,87157.0,87154.0,0.2983685]
[1765815708243,0.01147341,87158.0,87155.0,0.22947598]
[1765815708604,0.01147328,87159.0,87157.0,0.22947072]
[1765815708792,0.24093924,87159.0,87156.0,0.2294725]
[1765815708993,0.01147262,87164.0,87158.0,0.01147341]
[1765815709195,0.01147315,87160.0,87159.0,0.03434148]
[1765815709416,0.00030706,87162.0,87159.0,0.03434148]
[1765815709619,0.00030706,87162.0,87160.0,0.22946277]
[1765815709929,0.00030706,87162.0,87161.0,0.22946042]
[1765815710099,0.00030706,87162.0,87161.0,0.32480329]
[1765815710448,0.00030706,87162.0,87161.0,0.43531091]
[1765815710566,0.00030706,87162.0,87161.0,0.38056091]
[1765815710778,0.00030706,87162.0,87161.0,0.43531091]
[1765815711431,0.00130706,87162.0,87161.0,0.43531091]
[1765815712635,0.00030706,87162.0,87161.0,0.43531091]
[1765815715711,0.00030706,87162.0,87161.0,0.43731091]
[1765815715912,0.00030706,87162.0,87161.0,0.43931091]
[1765815716501,0.00030706,87162.0,87161.0,0.43731091]
[1765815717117,0.00030706,87162.0,87161.0,0.72801091]
[1765815717295,0.00030706,87162.0,87161.0,0.84125094]
[1765815717707,0.00030706,87162.0,87161.0,0.7800293]
[1765815718029,0.00030706,87162.0,87161.0,0.89126933]
[1765815718501,0.00030706,87162.0,87161.0,0.7800293]
[1765815718703,0.00030706,87162.0,87161.0,0.89126933]
[1765815719112,0.00030706,87162.0,87161.0,0.88926933]
[1765815719481,0.00030706,87162.0,87161.0,0.89226933]
[1765815720011,0.00030706,87162.0,87161.0,0.89026933]
[1765815720537,0.00030706,87162.0,87161.0,0.89326933]
[1765815720793,0.00030706,87162.0,87161.0,0.4913293]
[1765815721049,0.00030706,87162.0,87161.0,0.23707329]